bitfinex/quotes_ETHUSD_20241223
["timestamp","ask_amount","ask_price","bid_price","bid_amount"]
[1734997665014,0.7539,3421.6,3420.5,0.7631]
[1734997665015,2.92346,3420.6,3420.5,0.7631]
[1734997665203,0.55,3421.2,3420.2,1.22235315]
[1734997665372,2.92338,3420.7,3420.2,1.22235315]
[1734997665907,2.92321,3420.9,3420.2,1.22235315]
[1734997666569,0.7539,3421.0,3420.2,1.22235315]
[1734997666822,2.92337,3420.8,3420.2,1.22235315]
[1734997666987,3.67703,3421.0,3420.1,0.7631]
[1734997667314,2.92321,3420.9,3420.1,0.7631]
[1734997668004,0.7539,3421.0,3420.1,0.7631]
[1734997668188,2.92331,3420.8,3420.1,0.7631]
[1734997669701,0.55,3421.3,3420.1,0.7631]
[1734997669870,2.92298,3421.2,3420.2,2.92372]
[1734997670073,0.55,3421.3,3420.3,0.42681146]
[1734997670324,2.92311,3421.1,3420.1,0.7631]
[1734997671004,3.47291,3421.3,3420.1,0.7631]
[1734997671204,0.55,3421.1,3420.1,0.7631]
[1734997671413,2.92338,3420.7,3420.1,0.7631]
[1734997673279,2.92358,3420.5,3419.7,0.7736]
[1734997674042,2.92358,3420.5,3419.7,1.443399]
[1734997675264,2.92347,3420.6,3419.8,0.57739398]
[1734997676108,3.0,3421.0,3419.8,0.57739398]
[1734997676427,2.92321,3420.9,3419.9,3.69758]
[1734997676630,2.9231,3421.1,3420.1,2.92385]
[1734997676793,2.92329,3420.8,3419.9,0.7736]
[1734997676994,2.92379,3420.3,3419.9,0.7736]
[1734997677235,0.03222151,3420.2,3419.6,0.7736]
[1734997677393,5.72710054,3420.7,3419.6,0.7736]
[1734997677394,2.9236,3420.5,3419.6,0.7736]
[1734997677593,2.92382,3420.2,3419.6,0.7736]
[1734997679164,0.03222151,3420.6,3419.6,0.7736]
[1734997679165,0.55,3420.6,3419.6,0.7736]
[1734997679365,3.0,3421.2,3419.6,0.7736]
[1734997679366,0.7716,3421.0,3419.6,0.7736]
[1734997679571,2.9232,3420.9,3420.0,0.7736]
[1734997680064,2.92303,3421.1,3420.1,2.9238]
[1734997680224,3.69447,3421.3,3420.2,3.69735]
[1734997680421,2.92296,3421.2,3420.3,4.143335]
[1734997680821,2.92269,3421.5,3420.3,4.143335]
[1734997681156,2.92295,3421.2,3420.3,4.143335]
[1734997681864,3.47289,3421.3,3420.3,4.067025]
[1734997682161,0.7716,3421.9,3420.5,0.7736]
[1734997682370,2.92225,3422.1,3421.0,2.92305]
[1734997682568,1.19197186,3422.3,3421.3,0.7736]
[1734997683273,1.19197186,3422.3,3420.9,0.02922136]
[1734997683274,3.0,3422.5,3421.1,0.7736]
[1734997683417,3.0,3422.5,3421.6,3.6962]
[1734997683624,3.0,3422.5,3421.7,2.92247]
[1734997684037,3.0,3422.5,3421.7,0.7736]
[1734997684240,3.0,3422.5,3422.0,0.7736]
[1734997684725,3.0,3422.5,3422.1,2.92213]
[1734997684921,3.0,3422.5,3422.3,2.92198]
[1734997685153,3.0,3422.5,3422.4,0.7736]
[1734997686567,3.0,3422.5,3422.1,0.7827]
[1734997687071,3.0,3422.5,3421.5,0.59349873]
[1734997687072,2.92209,3422.2,3421.5,0.59349873]
[1734997687273,6.27574054,3422.3,3421.4,1.22235315]
[1734997687472,2.92244,3421.8,3421.4,1.22235315]
[1734997687675,6.27574054,3422.3,3421.4,1.22235315]
[1734997687843,2.92253,3421.7,3421.4,1.22235315]
[1734997688169,2.92262,3421.6,3421.4,1.22235315]
[1734997688378,2.92262,3421.6,3421.1,0.7827]
[1734997688552,2.92244,3421.8,3421.1,0.7827]
[1734997689649,2.92224,3422.1,3421.1,0.7827]
[1734997689973,2.92224,3422.1,3421.2,0.670582]
[1734997690419,0.812,3422.4,3421.2,0.670582]
[1734997690588,3.0,3422.5,3421.6,0.7827]
[1734997691408,3.0,3422.5,3421.8,2.92241]
[1734997691923,3.0,3422.5,3422.0,0.7827]
[1734997692088,3.0,3422.5,3422.0,1.16097]
[1734997692292,3.0,3422.5,3421.6,0.7827]
[1734997692489,2.92195,3422.4,3421.6,0.7827]
[1734997693505,2.92202,3422.3,3421.6,0.7827]
[1734997694435,5.92185,3422.5,3421.6,0.7827]
[1734997694816,3.0,3422.5,3421.6,0.7827]
[1734997695000,2.92196,3422.4,3421.6,0.7827]
[1734997695354,3.0,3422.5,3421.6,1.153252]
[1734997695497,3.0,3422.5,3421.4,0.02922048]
[1734997695498,3.0,3422.5,3421.8,2.9224]
[1734997695694,3.0,3422.5,3421.8,0.7827]
[1734997696044,3.0,3422.5,3422.1,0.7827]
[1734997696206,3.0,3422.5,3422.1,3.7827]
[1734997696536,3.0,3422.5,3422.1,0.7827]
[1734997696741,3.0,3422.5,3422.2,0.37827]
[1734997696891,3.0,3422.5,3422.1,0.7827]
[1734997697094,3.0,3422.5,3421.8,0.7827]
[1734997697095,3.84422151,3422.5,3421.8,0.7827]
[1734997697321,2.92209,3422.3,3421.5,0.7827]
[1734997697504,3.0,3422.5,3421.5,0.7827]
[1734997697808,3.0,3422.5,3422.0,0.7827]
[1734997697993,3.0,3422.5,3422.1,2.92216]
[1734997698188,3.0,3422.5,3422.2,0.370486]
[1734997698820,3.0,3422.5,3422.0,0.7827]
[1734997699223,0.55,3422.4,3421.5,0.7827]
[1734997699430,3.812,3422.5,3421.5,0.7827]
[1734997699612,2.92213,3422.2,3421.5,0.7827]
[1734997699815,3.812,3422.5,3421.5,0.7827]
[1734997700245,2.922,3422.4,3421.5,0.7827]
[1734997700547,3.0,3422.5,3421.7,2.92247]
[1734997701046,3.0,3422.5,3421.9,3.7827]
[1734997701210,3.0,3422.5,3421.9,3.70497]
[1734997701852,2.92193,3422.4,3421.9,0.7827]
[1734997702001,2.92207,3422.3,3421.6,0.8143]
[1734997702195,2.92217,3422.2,3421.6,0.8143]
[1734997702396,3.0,3422.5,3421.6,0.8143]
[1734997702397,2.95414151,3422.4,3421.6,0.8143]
[1734997702700,2.92202,3422.3,3421.6,0.8143]
[1734997703025,3.0,3422.5,3421.6,0.8143]
[1734997703201,0.55,3422.4,3421.6,0.8143]
[1734997703397,2.92217,3422.2,3421.6,0.8143]
[1734997704101,2.92225,3422.1,3421.6,0.8143]
[1734997704897,3.0,3422.5,3421.6,0.8143]
[1734997705719,2.922,3422.4,3421.6,0.8143]
[1734997706050,2.92252,3421.8,3421.2,0.8143]
[1734997706850,2.83595205,3421.7,3420.9,0.8143]
[1734997706997,0.55,3422.1,3420.9,0.8143]
[1734997706998,0.7611,3421.9,3420.9,0.8143]
[1734997707402,2.92233,3422.0,3420.9,0.8143]
[1734997708151,2.92233,3422.0,3420.5,3.39444783]
[1734997708152,2.92207,3422.3,3421.2,2.92291]
[1734997708332,2.92235,3421.9,3421.3,0.8143]
[1734997708527,2.92218,3422.1,3421.3,0.8143]
[1734997708731,2.9224,3421.9,3421.3,0.8143]
[1734997711152,2.92221,3422.1,3421.3,0.8143]
[1734997711905,3.0,3422.4,3421.3,1.188041]
[1734997712148,3.7611,3422.5,3422.1,0.8143]
[1734997712149,3.0,3422.5,3422.1,0.8143]
[1734997712459,3.0,3422.5,3422.3,3.0]
[1734997712748,3.0,3422.5,3422.4,0.8143]
[1734997713349,3.0,3422.5,3421.8,3.8143]
[1734997713515,3.0,3422.5,3421.9,0.673681]
[1734997714055,3.0,3422.5,3422.0,0.8143]
[1734997714259,5.92185,3422.5,3422.0,0.8143]
[1734997715220,3.0,3422.5,3422.0,0.8143]
[1734997716361,3.0,3422.5,3422.4,0.8143]
[1734997716523,3.0,3422.5,3422.4,1.187924]
[1734997718626,3.0,3422.5,3422.4,3.73622]
[1734997719218,0.7611,3423.3,3422.0,3.0]
[1734997719424,0.7611,3423.3,3422.4,2.92188]
[1734997719627,0.7611,3423.3,3422.2,2.92201]
[1734997719859,0.7611,3423.3,3422.3,3.0]
[1734997720020,0.7611,3423.3,3422.4,0.47413704]
[1734997720208,3.0,3423.5,3422.5,2.92181]
[1734997720826,5.92101,3423.5,3422.4,0.47413704]
[1734997721075,2.92117,3423.3,3422.2,2.92202]
[1734997721279,2.80373054,3423.0,3422.1,0.57502355]
[1734997721482,0.7611,3422.6,3421.5,1.22235315]
[1734997721668,3.0,3422.3,3421.5,1.22235315]
[1734997721985,0.7611,3421.8,3421.5,1.22235315]
[1734997722384,0.7611,3422.1,3421.1,0.8143]
[1734997723856,0.7611,3422.1,3421.1,3.73731]
[1734997724052,0.7611,3422.5,3421.2,0.02922321]
[1734997724281,0.7611,3422.5,3421.7,3.73681]
[1734997725295,1.129381,3422.5,3421.2,3.0]
[1734997725458,3.68298,3422.5,3421.4,2.92276]
[1734997726043,3.68298,3422.5,3421.5,2.92268]
[1734997726276,0.7611,3422.5,3421.5,2.92268]
[1734997726589,0.7611,3422.5,3421.6,2.92255]
[1734997726756,0.7611,3422.5,3421.7,2.92248]
[1734997726963,0.7611,3422.5,3421.7,0.292248]
[1734997727157,0.7611,3422.5,3421.9,2.92234]
[1734997727483,3.68262,3422.9,3421.9,2.92234]
[1734997727687,0.7611,3422.9,3422.0,0.02921702]
[1734997727889,3.6826,3422.9,3422.0,0.68619456]
[1734997728097,3.6826,3422.9,3421.9,2.92233]
[1734997728588,2.95384151,3422.8,3421.8,1.82666707]
[1734997728790,2.92162,3422.8,3421.8,1.82666707]
[1734997728991,2.92162,3422.8,3421.8,0.8143]
[1734997729486,0.7611,3422.9,3421.9,3.49955034]
[1734997729789,0.7611,3422.9,3421.9,4.08239549]
[1734997730490,0.7611,3422.9,3421.9,3.96379603]
[1734997730695,0.7611,3422.9,3422.1,2.92211]
[1734997731416,0.7611,3422.9,3421.9,6.88612603]
[1734997731716,0.7611,3422.9,3421.9,3.96379603]
[1734997731847,0.7611,3422.9,3422.2,2.92206]
[1734997732686,0.7611,3422.9,3422.0,3.55150972]
[1734997732894,3.68267,3422.9,3421.9,3.96379603]
[1734997733303,3.68267,3422.9,3421.9,6.88606603]
[1734997734151,3.68267,3422.9,3422.0,2.92226]
[1734997734582,0.7611,3422.9,3422.1,2.92217]
[1734997735524,0.7611,3422.9,3421.9,6.88612603]
[1734997735799,0.7611,3422.9,3422.0,0.7992674]
[1734997737592,0.7611,3422.9,3422.0,3.7214774]
[1734997739872,3.68262,3422.9,3422.0,0.7992674]
[1734997740207,3.68262,3422.9,3421.9,6.88614603]
[1734997741519,0.7611,3422.9,3422.0,2.92226]
[1734997741835,0.7611,3422.9,3422.4,2.92191]
[1734997741958,0.7611,3422.9,3422.2,0.8048]
[1734997742160,0.7611,3422.9,3422.3,2.92198]
[1734997743314,0.7611,3422.9,3422.4,0.372678]
[1734997743515,0.8127,3423.2,3422.4,0.372678]
[1734997743656,0.8127,3423.2,3422.4,0.02921067]
[1734997743857,1.19197186,3423.8,3423.0,2.80373054]
[1734997744097,1.19197186,3423.8,3423.4,5.72478054]
[1734997744363,1.19197186,3423.8,3423.3,2.92115]
[1734997744676,1.19197186,3423.8,3423.4,2.92103]
[1734997744871,1.19197186,3423.8,3423.7,2.92081]
[1734997745073,1.19197186,3423.8,3423.7,5.72454054]
[1734997745279,0.8127,3424.6,3423.9,2.92056]
[1734997746426,0.8127,3424.6,3424.1,2.92045]
[1734997746564,0.8127,3424.6,3424.0,2.92054]
[1734997747091,2.91946,3425.3,3424.2,2.92037]
[1734997747295,0.7819,3425.0,3424.3,2.92028]
[1734997747493,0.7819,3425.0,3424.0,3.45663759]
[1734997748775,3.70161,3425.0,3424.0,3.45663759]
[1734997748976,3.70161,3425.0,3423.8,0.8048]
[1734997748977,0.03222151,3424.9,3423.6,1.22235315]
[1734997749315,2.92032,3424.3,3423.7,0.58865009]
[1734997749530,5.91968,3425.1,3423.6,1.22235315]
[1734997749531,2.92054,3424.1,3423.6,1.22235315]
[1734997749730,0.03222151,3424.0,3423.6,1.22235315]
[1734997750028,0.7819,3423.9,3423.0,1.22235315]
[1734997750325,3.70254,3423.9,3423.0,1.22235315]
[1734997751027,3.70254,3423.9,3422.9,3.51264644]
[1734997751232,0.7819,3423.9,3423.0,2.80373054]
[1734997751732,0.7819,3423.9,3422.7,2.80373054]
[1734997752023,2.92097,3423.6,3422.7,2.80373054]
[1734997752227,3.70293,3423.5,3422.7,2.80373054]
[1734997752825,2.92121,3423.3,3422.7,2.80373054]
[1734997752989,0.03222151,3423.4,3422.4,3.3952481]
[1734997753189,2.92133,3423.1,3422.1,2.80373054]
[1734997753530,0.7819,3423.0,3422.3,0.59005456]
[1734997753687,3.70333,3423.0,3422.3,0.59005456]
[1734997754433,0.7819,3423.0,3422.2,0.63089057]
[1734997755530,2.92162,3422.8,3422.2,0.63089057]
[1734997755735,2.9217,3422.7,3422.2,0.63089057]
[1734997755887,2.9217,3422.7,3422.1,2.80373054]
[1734997756083,2.9217,3422.7,3421.9,0.58284515]
[1734997757209,2.92152,3422.9,3421.9,0.58284515]
[1734997757735,2.92152,3422.9,3422.1,0.59918207]
[1734997758290,0.7819,3423.0,3422.1,0.59918207]
[1734997758491,2.92176,3422.6,3422.1,0.59918207]
[1734997758793,0.37355115,3422.9,3422.1,0.59918207]
[1734997758794,2.92186,3422.5,3422.1,0.59918207]
[1734997758993,0.7819,3422.4,3421.6,0.7845]
[1734997759623,0.7819,3422.4,3421.9,0.59888933]
[1734997761397,2.92169,3422.7,3421.9,0.59888933]
[1734997761592,0.7819,3422.9,3422.2,0.8249]
[1734997762144,0.7819,3422.9,3422.2,3.74691]
[1734997763291,0.7624,3423.3,3422.2,0.8249]
[1734997763497,0.7624,3423.3,3422.2,3.74696]
[1734997763991,2.92124,3423.2,3422.2,3.74696]
[1734997764194,2.9214,3423.1,3422.2,1.61095519]
[1734997764443,0.7624,3423.1,3421.9,2.13476132]
[1734997764630,0.7624,3423.1,3421.9,3.35711447]
[1734997764844,0.7624,3422.5,3421.9,2.53221447]
[1734997765435,0.7624,3422.5,3421.9,1.82124248]
[1734997765593,0.7624,3422.5,3421.9,0.59888933]
[1734997767782,0.7624,3423.0,3422.1,2.80373054]
[1734997768084,4.11276186,3423.8,3422.2,0.8249]
[1734997768085,2.92134,3423.1,3422.2,0.8249]
[1734997769178,0.7624,3423.2,3422.2,0.8249]
[1734997769482,0.7624,3423.2,3422.2,2.92207]
[1734997769483,3.0,3423.1,3422.2,2.92207]
[1734997769685,0.7836,3422.8,3421.9,0.59888933]
[1734997769987,2.92178,3422.6,3421.9,0.59888933]
[1734997770282,2.92189,3422.5,3421.9,0.59888933]
[1734997770485,2.92189,3422.5,3421.6,2.03275315]
[1734997770810,2.92189,3422.5,3421.7,0.57664164]
[1734997771346,0.38158215,3422.7,3421.7,0.57664164]
[1734997771685,0.41974037,3422.6,3421.8,5.72609054]
[1734997771990,3.70521,3422.8,3421.8,2.92242]
[1734997771991,3.70525,3422.8,3421.8,2.92242]
[1734997774227,0.7836,3422.8,3422.0,2.80373054]
[1734997774436,3.0,3423.2,3422.2,2.92208]
[1734997774577,0.7836,3423.1,3422.1,0.8104]
[1734997774778,2.92085,3423.7,3421.8,2.92238]
[1734997774779,2.92088,3423.7,3422.6,2.80373054]
[1734997775013,0.03222151,3423.7,3422.3,3.61413054]
[1734997775276,0.7836,3423.0,3422.3,1.385258]
[1734997775529,2.9216,3422.8,3422.0,2.80373054]
[1734997775882,3.70502,3423.0,3421.9,3.73271]
[1734997776229,0.7836,3423.0,3422.1,4.14447315]
[1734997776380,0.7836,3423.0,3422.1,1.82121724]
[1734997776727,0.7836,3423.0,3422.1,4.74332724]
[1734997777159,3.7836,3423.0,3422.1,3.52097409]
[1734997777817,3.7836,3423.0,3422.2,2.92208]
[1734997778009,3.7836,3423.0,3422.2,3.70095187]
[1734997778204,0.7836,3422.7,3421.8,2.92241]
[1734997778405,2.83595205,3422.6,3421.6,1.22235315]
[1734997778603,3.70612,3421.7,3421.6,1.22235315]
[1734997778808,2.9226,3421.6,3421.5,1.22235315]
[1734997780324,0.7836,3421.7,3420.7,0.57661455]
[1734997780325,3.70612,3421.7,3420.7,0.57661455]
[1734997780674,3.32549251,3421.6,3420.4,0.05551667]
[1734997781576,2.92295,3421.2,3420.4,0.05551667]
[1734997781916,2.92279,3421.4,3420.4,0.05551667]
[1734997782625,2.92279,3421.4,3420.5,0.5961696]
[1734997784068,3.70614,3421.7,3420.7,5.72707054]
[1734997784364,0.7836,3421.7,3420.7,5.72707054]
[1734997784517,3.0,3421.8,3420.8,0.8104]
[1734997785953,3.0,3421.8,3420.8,3.73367]
[1734997786192,3.0,3421.8,3420.8,0.8104]
[1734997786373,3.0,3421.6,3420.8,0.8104]
[1734997789595,0.03222151,3421.5,3420.5,1.4065696]
[1734997789802,2.92295,3421.2,3420.5,1.4065696]
[1734997791183,3.70639,3421.4,3420.5,1.4065696]
[1734997791556,2.92287,3421.3,3420.5,1.4065696]
[1734997791754,2.92298,3421.2,3420.5,1.4065696]
[1734997791987,2.92298,3421.2,3420.4,0.05551667]
[1734997791988,2.9232,3420.9,3420.4,0.05551667]
[1734997792308,2.92337,3420.7,3420.4,0.05551667]
[1734997793151,0.8197,3420.8,3420.4,0.05551667]
[1734997793348,3.8197,3420.8,3420.4,0.05551667]
[1734997794999,2.92338,3420.7,3420.4,0.05551667]
[1734997796093,2.92346,3420.6,3420.4,0.05551667]
[1734997796655,2.92354,3420.5,3420.4,0.05551667]
[1734997797799,1.19806,3420.8,3420.4,0.05551667]
[1734997798006,2.92354,3420.5,3420.4,0.05551667]
[1734997798909,2.92339,3420.7,3420.4,0.05551667]
[1734997799308,3.33875715,3420.7,3419.9,0.7972]
[1734997800093,2.95568151,3420.6,3419.9,0.7972]
[1734997800711,2.92346,3420.6,3419.9,0.7972]
[1734997800857,0.44758866,3420.7,3419.9,0.7972]
[1734997801064,3.33875715,3420.7,3419.9,0.7972]
[1734997801759,3.0,3420.8,3419.9,0.7972]
[1734997802115,3.0,3420.8,3420.0,2.92396]
[1734997802802,3.0,3421.1,3420.0,2.92396]
[1734997803003,0.8197,3421.2,3420.0,2.92396]
[1734997803454,3.0,3421.0,3420.0,2.92396]
[1734997803594,3.0,3420.9,3420.0,2.92396]
[1734997803793,3.0,3420.9,3420.1,0.372116]
[1734997804162,0.8197,3421.2,3420.3,2.92364]
[1734997804598,2.92286,3421.3,3420.3,2.92364]
[1734997804904,0.8197,3421.8,3420.4,0.7972]
[1734997805106,2.92268,3421.6,3420.6,2.92344]
[1734997805614,3.74217,3421.8,3420.7,2.92335]
[1734997805763,2.92258,3421.7,3420.8,0.0292294]
[1734997805964,2.92258,3421.7,3420.7,2.9233]
[1734997806196,0.8197,3421.8,3420.6,0.7972]
[1734997806364,2.92237,3421.9,3421.0,0.7757]
[1734997806996,3.0,3421.8,3421.0,0.7757]
[1734997807166,2.92237,3421.9,3421.0,0.7757]
[1734997808876,2.92245,3421.8,3421.0,0.7757]
[1734997809094,2.92245,3421.8,3420.4,0.58322787]
[1734997809095,0.7735,3421.7,3420.6,0.7757]
[1734997809409,0.7735,3421.4,3420.1,4.27423065]
[1734997809609,2.92301,3421.2,3420.1,4.27423065]
[1734997809767,2.92301,3421.2,3420.2,1.22235315]
[1734997810295,2.92325,3420.9,3420.2,1.22235315]
[1734997810489,3.69632,3421.4,3420.2,1.22235315]
[1734997810490,2.92317,3421.0,3420.2,1.22235315]
[1734997810881,0.03222151,3420.9,3420.1,1.35038065]
[1734997811076,2.92317,3421.0,3420.1,1.35038065]
[1734997811675,3.0,3421.3,3420.1,1.77780871]
[1734997811896,3.0,3421.3,3420.5,0.7757]
[1734997812109,2.80373054,3422.1,3420.4,2.92359]
[1734997812110,2.92232,3422.0,3420.9,2.92318]
[1734997812273,3.0,3421.9,3420.7,0.7757]
[1734997812474,2.92232,3422.0,3421.0,2.92309]
[1734997812678,0.7735,3422.2,3421.1,0.7757]
[1734997812991,0.7735,3422.7,3421.9,2.92227]
[1734997813381,3.69496,3423.0,3421.9,2.92227]
[1734997813765,3.72694151,3423.3,3422.2,2.92205]
[1734997814094,0.80572151,3423.3,3421.7,0.7757]
[1734997814413,2.92144,3423.0,3421.9,2.92234]
[1734997814607,2.92144,3423.0,3422.0,2.92225]
[1734997814915,2.92144,3423.0,3421.7,0.7757]
[1734997814916,2.80373054,3423.1,3421.7,0.7757]
[1734997815120,0.7735,3422.5,3421.4,0.57580078]
[1734997815267,2.92217,3422.2,3421.4,0.57580078]
[1734997815976,0.03222151,3422.1,3421.4,0.57580078]
[1734997816309,2.9222,3422.1,3421.4,0.57580078]
[1734997816510,0.03222151,3422.0,3421.4,0.57580078]
[1734997816667,3.0,3422.2,3421.4,1.01619043]
[1734997817368,3.0,3422.4,3421.6,0.7757]
[1734997817571,3.0,3422.6,3421.6,3.69824]
[1734997818030,2.92139,3423.1,3421.7,2.92252]
[1734997818311,3.80572151,3423.2,3422.2,0.7757]
[1734997818467,3.0,3422.9,3422.2,0.7757]
[1734997819713,0.80572151,3423.2,3422.2,0.7757]
[1734997819918,0.03222151,3423.1,3421.5,0.7757]
[1734997820303,3.0,3422.7,3421.5,0.7757]
[1734997820618,2.92195,3422.4,3421.5,0.7757]
[1734997820781,2.92195,3422.4,3421.4,0.57580078]
[1734997820782,0.32763866,3422.3,3421.4,0.57580078]
[1734997820996,2.92242,3421.9,3421.2,0.7757]
[1734997821326,2.95472151,3421.8,3421.2,0.7757]
[1734997821686,3.0,3421.9,3421.2,0.7757]
[1734997821935,3.0,3421.9,3421.2,1.45082957]
[1734997822436,2.92227,3422.0,3421.2,1.45082957]
[1734997822639,5.92214,3422.2,3421.2,4.37369957]
[1734997822938,3.0,3422.2,3421.2,1.45082957]
[1734997823117,2.92218,3422.1,3421.2,0.7757]
[1734997824081,3.0,3422.3,3421.2,0.7757]
[1734997824302,3.0,3422.5,3421.2,0.7757]
[1734997824482,3.0,3422.5,3421.5,2.92268]
[1734997824684,3.0,3422.5,3421.5,3.292518]
[1734997826070,3.0,3422.5,3421.5,0.369838]
[1734997826201,3.0,3422.7,3421.7,2.92245]
[1734997826400,5.92143,3423.0,3421.6,0.795]
[1734997826633,5.92143,3423.0,3422.1,0.795]
[1734997827230,0.7941,3423.1,3422.1,3.71714]
[1734997828737,0.7941,3423.1,3422.2,2.92204]
[1734997829032,0.82632151,3423.1,3422.2,2.92204]
[1734997830838,0.7941,3423.1,3422.2,2.92204]
[1734997831150,0.7941,3423.1,3422.3,2.92201]
[1734997831292,0.7941,3423.4,3422.1,0.795]
[1734997831492,0.41453265,3423.3,3422.4,2.92192]
[1734997831890,2.92125,3423.2,3422.5,0.795]
[1734997832091,0.7941,3423.4,3422.5,0.795]
[1734997832092,2.92142,3423.0,3422.5,0.795]
[1734997832413,2.92162,3422.8,3422.2,0.795]
[1734997832625,0.7941,3422.6,3421.4,0.795]
[1734997832793,2.95410151,3422.5,3421.4,3.7177]
[1734997832991,2.95410151,3422.5,3421.7,0.57716744]
[1734997834216,2.92203,3422.3,3421.7,0.57716744]
[1734997834416,2.95408151,3422.5,3421.7,0.57716744]
[1734997834955,0.7941,3422.6,3421.7,0.57716744]
[1734997835443,2.9215,3422.9,3421.9,2.92234]
[1734997835744,3.0,3422.8,3421.9,2.92234]
[1734997836529,2.9215,3422.9,3421.9,2.92234]
[1734997837041,0.7941,3423.0,3422.0,2.92224]
[1734997837198,3.7941,3423.0,3422.0,2.92224]
[1734997837398,3.7941,3423.0,3422.1,0.7648]
[1734997837710,3.0,3423.2,3422.2,2.92209]
[1734997837912,0.03222151,3423.1,3422.2,0.7648]
[1734997838118,0.03222151,3423.3,3422.2,0.7648]
[1734997838312,3.0,3423.0,3422.2,0.7648]
[1734997838732,3.0,3423.0,3422.3,0.368691]
[1734997840152,3.0,3423.0,3422.2,0.7648]
[1734997840832,2.92148,3423.0,3422.2,0.7648]
[1734997841006,5.9216,3422.8,3422.2,0.7648]
[1734997841207,0.03222151,3422.7,3422.2,0.7648]
[1734997841523,0.03222151,3422.7,3421.9,0.8288]
[1734997841720,0.03222151,3422.7,3421.9,1.21754429]
[1734997841950,2.92187,3422.5,3421.9,0.8288]
[1734997842251,0.03222151,3422.4,3421.9,0.8288]
[1734997842459,2.95421151,3422.4,3421.9,0.8288]
[1734997843248,2.92225,3422.1,3421.6,0.8288]
[1734997843911,0.03222151,3422.0,3421.6,0.8288]
[1734997844106,2.92225,3422.1,3421.6,0.8288]
[1734997846207,3.0,3422.2,3421.6,0.8288]
[1734997846556,3.0,3422.4,3421.6,0.8288]
[1734997846756,3.0,3422.6,3421.6,4.18439938]
[1734997847051,3.0,3422.3,3421.6,1.26183938]
[1734997847241,3.03222151,3422.3,3421.6,0.8288]
[1734997849440,3.0,3422.2,3421.6,0.8288]
[1734997849635,3.0,3422.4,3421.6,0.8288]
[1734997849874,3.03222151,3422.4,3421.6,0.8288]
[1734997850542,3.0,3422.6,3421.6,0.8288]
[1734997850751,2.9217,3422.7,3421.8,0.8288]
[1734997850955,0.7858,3423.1,3422.2,0.8288]
[1734997851158,4.11699939,3423.2,3422.2,0.8288]
[1734997851369,2.80374002,3423.3,3422.3,2.92199]
[1734997851684,5.72498002,3423.3,3422.3,2.92199]
[1734997851862,2.92135,3423.1,3422.2,0.8288]
[1734997852031,2.92151,3422.9,3422.2,0.8288]
[1734997852591,2.95357151,3423.1,3422.2,0.8288]
[1734997852758,3.0,3423.0,3422.2,0.8288]
[1734997852957,3.03222151,3423.0,3422.2,0.8288]
[1734997853132,2.95371151,3423.0,3422.2,0.8288]
[1734997853679,0.03222151,3423.0,3422.2,0.8288]
[1734997853897,2.92151,3422.9,3422.2,0.8288]
[1734997854385,0.03222151,3422.8,3422.2,0.8288]
[1734997854586,2.9216,3422.8,3422.2,0.8288]
[1734997858900,3.0,3423.2,3422.2,0.8288]
[1734997858901,2.92142,3423.0,3422.2,0.8288]
[1734997859093,5.92127,3423.2,3422.2,0.8288]
[1734997859963,2.92127,3423.2,3422.2,0.8288]
[1734997861099,2.9215,3422.9,3422.2,0.8288]
[1734997861614,2.80374002,3422.3,3422.0,1.22095829]
[1734997861761,2.92218,3422.1,3422.0,1.22095829]
[1734997861968,5.92218,3422.1,3422.0,1.22095829]
[1734997862157,7.26018,3422.1,3422.0,1.22095829]
[1734997862359,7.26018,3422.1,3421.6,1.22095829]
[1734997862360,5.92252,3421.7,3421.6,1.22095829]
[1734997862820,6.71052,3421.7,3421.6,1.22095829]
[1734997863106,6.71078,3421.4,3421.3,2.32e-06]
[1734997863479,2.92286,3421.3,3421.2,8.06e-06]
[1734997863668,8.75882153,3421.3,3421.2,8.06e-06]
[1734997863886,9.27660002,3421.3,3421.2,8.06e-06]
[1734997864085,3.55,3421.2,3419.7,0.81160806]
[1734997864330,3.0,3420.5,3419.7,8.06e-06]
[1734997864630,3.0,3420.2,3419.7,8.06e-06]
[1734997864787,2.92414,3419.8,3419.7,8.06e-06]
[1734997865603,3.0,3420.5,3419.3,0.8116]
[1734997865784,2.92355,3420.5,3419.4,2.92443]
[1734997865981,3.0,3420.6,3419.5,0.373603]
[1734997866184,3.0,3420.6,3419.5,3.298003]
[1734997866185,3.03222151,3420.6,3419.5,3.298003]
[1734997866434,5.95573151,3420.6,3419.5,0.373603]
[1734997866594,7.11901939,3420.9,3419.6,2.92431]
[1734997866951,0.03222151,3420.8,3419.6,2.92431]
[1734997867103,0.03222151,3420.8,3419.7,0.3297913]
[1734997867431,3.0,3420.6,3419.7,0.3297913]
[1734997867657,2.92355,3420.5,3419.7,0.3297913]
[1734997867939,2.92377,3420.3,3419.3,0.8116]
[1734997868230,3.0,3420.0,3419.3,0.8116]
[1734997868438,3.0,3419.7,3419.3,0.8116]
[1734997868897,3.0,3419.9,3419.3,0.8116]
[1734997869099,0.45063176,3420.1,3419.3,0.8116]
[1734997869600,2.92358,3420.5,3419.4,0.02924516]
[1734997869808,7.9803309,3420.7,3419.5,2.9244]
[1734997869994,3.0,3420.4,3419.3,3.73613]
[1734997870335,3.0,3420.6,3419.5,2.9244]
[1734997870507,0.03222151,3420.5,3419.6,0.3736]
[1734997870708,3.0,3420.6,3419.6,3.29785]
[1734997871701,3.03222151,3420.6,3419.6,3.29785]
[1734997872446,0.03222151,3420.6,3419.6,0.3736]